Cogmind - Beta 11.1 @@@ ROGUE MODE // 2022.06.01 @ 22:57:40 Player: dandone Result: Destroyed by X-57 Shotgunner with High-powered Shotgun Performance ------------- Evolutions (3) 1500 Regions Visited (5) 1000 Robots Destroyed (72) 360 Value Destroyed (2239) 2239 Prototype IDs (0) 0 Alien Tech Used (0) 0 Bonus (132) 132 TOTAL SCORE: 5231 Bonus ------- High Alert Combat Kills 132 Cogmind --------- Core Integrity 0/700 Matter 74/300 Energy 100/100 System Corruption 9% Temperature Cool (0) Movement Core (50) Location -7/Factory Parts ------- > --- POWER (1) -------- (None) > --- PROPULSION (3) --- (None) > --- UTILITY (6) ------ (None) > --- WEAPON (3) ------- (None) > --- INVENTORY (5) ---- (None) Peak State ------------ > --- POWER ------------ Improved Deuterium Engine > --- PROPULSION ------- Titanium Leg Titanium Leg Improved Carbon-fiber Leg > --- UTILITY ---------- Compact Matter Pod Weight Redist. System Signal Interpreter Terrain Scan Processor Improved Light Armor Plating Improved Shield Generator > --- WEAPON ----------- Flak Cannon Flak Cannon Flak Cannon > --- INVENTORY -------- Armored Wheel Hardened Medium Armor Plating Heavy Assault Rifle Advanced Assault Cannon [Rating: 39] Favorites ----------- Power Ion Engine Engine Ion Engine Power Core Light Nuclear Core Propulsion Light Treads Treads Light Treads Leg Titanium Leg Wheel Armored Wheel Utility Signal Interpreter Device Weight Redist. System Storage Small Storage Unit Processor Signal Interpreter Protection Hardened Medium Armor Plating Weapon Flak Cannon Ballistic Gun Assault Rifle Ballistic Cannon Flak Cannon Launcher Grenade Launcher Build | -11 -10 -10 -9 -8 -7 ------- Run | Scr Mat Min Mat Mat Fac Slots Evolved 6 | . . . 2 2 2 Power . | . . . . . . Propulsion 1 | . . . . 1 . Utility 4 | . . . 1 1 2 Weapon 1 | . . . 1 . . Parts Attached 60 | 6 2 . 12 21 19 Power 5 | 1 . . 1 2 1 Engine 4 | 1 . . 1 1 1 Core 1 | . . . . 1 . Reactor . | . . . . . . Propulsion 17 | 2 . . 4 5 6 Treads 12 | 2 . . 4 5 1 Leg 4 | . . . . . 4 Wheel 1 | . . . . . 1 Hover . | . . . . . . Flight . | . . . . . . Utility 18 | 1 2 . 2 6 7 Device 8 | . 1 . . 3 4 Storage 4 | 1 . . 1 2 . Processor 3 | . 1 . . . 2 Hackware . | . . . . . . Protection 3 | . . . 1 1 1 Artifact . | . . . . . . Weapon 20 | 2 . . 5 8 5 Energy Gun . | . . . . . . Energy Cannon . | . . . . . . Ballistic Gun 7 | 2 . . 2 1 2 Ballistic Cannon 12 | . . . 3 6 3 Launcher 1 | . . . . 1 . Special Weapon . | . . . . . . Impact Weapon . | . . . . . . Slashing Weapon . | . . . . . . Piercing Weapon . | . . . . . . Special Melee Weapon . | . . . . . . Unidentified Prototypes . | . . . . . . Parts Lost 30 | . . . 1 12 17 Power 3 | . . . . 2 1 Propulsion 6 | . . . . 2 4 Utility 10 | . . . 1 2 7 Weapon 11 | . . . . 6 5 Highest Loss Streak 9 | . . . 1 8 9 To Critical Strikes . | . . . . . . Average Slot Usage (%) 89 | . 98 100 98 85 81 Engine 7 | . 14 14 11 1 5 Core 1 | . . . . 4 . Treads 19 | . 28 28 22 25 6 Leg 4 | . . . . . 13 Device 7 | . 12 14 2 6 10 Storage 8 | . 1 . 10 11 6 Processor 11 | . 12 14 11 9 12 Protection 5 | . . . 7 4 5 Ballistic Gun 11 | . 28 28 24 3 . Ballistic Cannon 12 | . . . 8 18 18 Naked Turns 9 | . . . . . 9 Heaviest Build 40 | 14 14 10 30 35 40 Greatest Support 68 | 40 40 40 44 68 68 Greatest Overweight (x) 3 | . . . . . 3 Average Overweight (x) . | . . . . . . Largest Inventory Capacity 8 | 8 8 5 8 8 5 Average Capacity 6 | 7 5 5 7 6 5 Most Carried 8 | 4 6 5 8 8 5 Average Carried 4 | 2 4 5 6 5 3 Final Capacity 8 | 8 5 5 8 5 5 Final Carried 8 | 4 5 5 8 5 . Class Distribution -------------------- 50% | Tank 35% | Mutant 5% | Gunner 5% | Skirmisher 3% | Scavenger-Tank Dominant Class ---------------- Mutant | -10/Materials Mutant | -10/Mines Tank | -9/Materials Tank | -8/Materials Tank | -7/Factory Resources | -11 -10 -10 -9 -8 -7 ----------- Run | Scr Mat Min Mat Mat Fac Matter Collected 2219 | 256 66 . 287 1070 540 Remotely . | . . . . . . Salvage Created 1969 | . 81 . 597 712 579 Parts 122 | . 7 . 47 38 30 Haulers Intercepted 1 | . . . . . 1 Recyclers Shooed 3 | . . . . 1 2 Parts Field Recycled . | . . . . . . Retrieved Matter . | . . . . . . Parts Self-Destructed . | . . . . . . Prevented . | . . . . . . Kills | -11 -10 -10 -9 -8 -7 ------- Run | Scr Mat Min Mat Mat Fac Combat Hostiles Destroyed 53 | . 4 . 16 20 13 Guns 21 | . 4 . 13 2 2 Cannons 29 | . . . 3 15 11 AOE 3 | . . . . 3 . Classes Destroyed 13 | . 2 . 4 4 3 Worker 7 | . . . . 2 5 Builder 1 | . . . . . 1 Hauler 1 | . . . . . 1 Recycler 5 | . . . . 3 2 Operator 1 | . . . 1 . . Watcher 4 | . 1 . 1 1 1 Swarmer 15 | . 4 . 4 5 2 Grunt 24 | . . . 8 10 6 Duelist 3 | . . . 1 1 1 Sentry 7 | . . . 3 2 2 Hunter 1 | . . . . 1 . Programmer 2 | . . . . . 2 Heavy 1 | . . . . 1 . Best Kill Streak 9 | . 3 . 8 9 8 Combat Bots Only 6 | . 3 . 6 5 2 Max Kills in Single Turn 5 | . 1 . 2 3 5 Gunslinging 1 | . . . 1 . . Exploded 3 | . . . . 3 . Melee . | . . . . . . Uniques/NPCs Destroyed . | . . . . . . Combat | -11 -10 -10 -9 -8 -7 -------- Run | Scr Mat Min Mat Mat Fac Damage Taken 6233 | . 154 . 517 2850 2712 Core 1275 | . 57 . 29 488 701 Absorbed by Shields 274 | . . . . 39 235 Regen/Repaired (Parts) 275 | . . . . . 275 Core Remaining (%) 70 | 100 . 77 92 11 . Volleys Fired 164 | . 7 . 39 64 54 Largest 3 | . 2 . 3 3 3 Hottest 132 | . 40 . 132 132 132 Shots Fired 398 | . 14 . 117 141 126 Gun 146 | . 14 . 102 12 18 Cannon 251 | . . . 15 128 108 Launcher 1 | . . . . 1 . Special . | . . . . . . Kinetic 397 | . 14 . 117 140 126 Thermal . | . . . . . . Explosive 1 | . . . . 1 . Electromagnetic . | . . . . . . Robot Hit Streak 18 | . 2 . 16 18 6 Robot Miss Streak 13 | . 3 . 5 7 13 Penetration Max . | . . . . . . Secondary Targets 8 | . 1 . 7 . . Max Gunslinging Chain 2 | . 1 . 2 . . Shots Hit Robots 252 | . 6 . 62 86 98 Core Hits 184 | . 5 . 31 73 75 Critical Kills . | . . . . . . Critical Parts Destroyed . | . . . . . . Critical Strikes 2 | . . . . 2 . Blast 2 | . . . . 2 . Melee Attacks . | . . . . . . Impact . | . . . . . . Slashing . | . . . . . . Piercing . | . . . . . . Sneak Attacks . | . . . . . . Combat Hostiles . | . . . . . . Follow-up Attacks . | . . . . . . Damage Inflicted 5280 | . 77 . 796 2119 2288 Guns 957 | . 77 . 648 79 153 Cannons 3193 | . . . 148 1754 1291 Explosions 1121 | . . . . 280 841 Melee . | . . . . . . Ramming 9 | . . . . 6 3 Kinetic 4150 | . 77 . 796 1833 1444 Thermal 756 | . . . . . 756 Explosive 365 | . . . . 280 85 Electromagnetic . | . . . . . . Impact . | . . . . . . Slashing . | . . . . . . Piercing . | . . . . . . Highest Corruption 9 | . . . . . 9 Average Corruption 1 | . . . . . 1 Corruption Purged . | . . . . . . Corruption Blocked . | . . . . . . Effects 3 | . . . . . 3 Message Errors 1 | . . . . . 1 Energy Discharges 1 | . . . . . 1 Data Loss (minor) 1 | . . . . . 1 Overload Shots . | . . . . . . Overflow Damage 323 | . . . 2 26 295 Projectiles 13 | . . . 2 11 . Explosions 310 | . . . . 15 295 Melee . | . . . . . . Knockbacks 74 | . . . 1 34 39 Impact . | . . . . . . Kinetic 66 | . . . 1 31 34 Secondary 8 | . . . . 3 5 Self-Inflicted Damage 125 | . . . . 40 85 Shots 2 | . . . . 1 1 Rammed 5 | . . . . 4 1 Targets Rammed 5 | . . . . 4 1 Kicked . | . . . . . . Crushed . | . . . . . . Highest Temperature 495 | . . . 205 326 495 Average Temperature 119 | . . . 52 115 145 Received Heat Transfer 1759 | . . . 189 1017 553 Effects 4 | . . . . . 4 Shutdowns 2 | . . . . . 2 Energy Bleed 2 | . . . . . 2 Siege Activations . | . . . . . . Robots Corrupted . | . . . . . . Combat Hostiles . | . . . . . . Parts Fried . | . . . . . . Impact Corruptions 1 | . . . . 1 . Robots Melted . | . . . . . . Combat Hostiles . | . . . . . . Parts Melted . | . . . . . . Heat Transferred 600 | . . . . . 600 Parts Sabotaged . | . . . . . . Parts Stolen . | . . . . . . Parts Stripped . | . . . . . . Power Chain Reactions . | . . . . . . Missiles Intercepted . | . . . . . . Alert | -11 -10 -10 -9 -8 -7 ------- Run | Scr Mat Min Mat Mat Fac Peak Influence 678 | . 118 45 381 474 678 Initial 215 | . . 45 17 135 215 Average 283 | . 92 45 252 320 410 Maximum Alert Level 2 | . . . 1 2 2 Low Security (%) 36 | 100 100 100 39 20 8 Level 1 40 | . . . 60 42 47 Level 2 22 | . . . . 36 43 Level 3 . | . . . . . . Level 4 . | . . . . . . Level 5 . | . . . . . . High Security . | . . . . . . Max Security . | . . . . . . Squads Dispatched 11 | . . . 1 6 4 Investigation 3 | . . . . 1 2 Extermination 1 | . . . . . 1 Reinforcement 4 | . . . 1 2 1 Assault . | . . . . . . Garrison 3 | . . . . 3 . Intercept . | . . . . . . Searches Triggered . | . . . . . . Construction Impeded 2 | . . . . 1 1 Haulers Reinforced . | . . . . . . Active Scanning Responses . | . . . . . . Cargo Convoy Interrupts 1 | . . . . . 1 Stealth | -11 -10 -10 -9 -8 -7 --------- Run | Scr Mat Min Mat Mat Fac Distress Signals 5 | . 1 . 1 1 2 Communications Jammed . | . . . . . . Distress Signals . | . . . . . . Times Spotted 89 | . 6 . 19 30 34 Peak Tracking Total 11 | . 3 . 4 11 11 Tactical Retreats 3 | . . . . 2 1 Traps | -11 -10 -10 -9 -8 -7 ------- Run | Scr Mat Min Mat Mat Fac Traps Triggered 5 | . 2 . . 1 2 Indirectly . | . . . . . . Trap Hack Attempts . | . . . . . . Triggered . | . . . . . . Disarmed . | . . . . . . Reprogrammed . | . . . . . . Reused . | . . . . . . Traps Extracted . | . . . . . . Installed . | . . . . . . Triggered . | . . . . . . Machines | -11 -10 -10 -9 -8 -7 ---------- Run | Scr Mat Min Mat Mat Fac Machines Disabled 16 | . . . 2 . 14 Max in Single Turn 13 | . . . 1 . 13 Machines Sabotaged . | . . . . . . Garrisons Compromised . | . . . . . . Overloaded Fab Kills . | . . . . . . Hacking | -11 -10 -10 -9 -8 -7 --------- Run | Scr Mat Min Mat Mat Fac Machines Accessed 6 | . 1 . 2 1 2 Terminals 4 | . 1 . 2 1 . Fabricators 1 | . . . . . 1 Repair Stations 1 | . . . . . 1 Recycling Units . | . . . . . . Scanalyzers . | . . . . . . Garrison Access . | . . . . . . Total Hacks 13 | . 1 . 2 4 6 Successful 7 | . 1 . 2 2 2 Failed 6 | . . . . 2 4 Catastrophic . | . . . . . . Database Lockouts . | . . . . . . Manual . | . . . . . . Terminals 7 | . 1 . 2 4 . Fabricators 3 | . . . . . 3 Repair Stations 3 | . . . . . 3 Recycling Units . | . . . . . . Scanalyzers . | . . . . . . Garrison Access . | . . . . . . Terminal Hacks 5 | . 1 . 2 2 . Record 5 | . 1 . 2 2 . Fabricator Hacks . | . . . . . . Repair Station Hacks 2 | . . . . . 2 Scan Component 1 | . . . . . 1 Repair 1 | . . . . . 1 Recycling Unit Hacks . | . . . . . . Scanalyzer . | . . . . . . Garrison Access Hacks . | . . . . . . Unauthorized Hacks . | . . . . . . Terminals . | . . . . . . Fabricators . | . . . . . . Repair Stations . | . . . . . . Recycling Units . | . . . . . . Scanalyzers . | . . . . . . Garrison Access . | . . . . . . Data Cores Recovered . | . . . . . . Used . | . . . . . . Hacking Detections 6 | . 1 . 2 1 2 Full Trace Events 2 | . . . . 1 1 Feedback Events . | . . . . . . Feedback Blocked . | . . . . . . Robot Schematics Acquired . | . . . . . . Robots Built . | . . . . . . Authchips . | . . . . . . Time . | . . . . . . Total Robot Build Rating . | . . . . . . Part Schematics Acquired . | . . . . . . Parts Built . | . . . . . . Authchips . | . . . . . . Time . | . . . . . . Total Part Build Rating . | . . . . . . Parts Repaired 1 | . . . . . 1 Time 19 | . . . . . 19 Parts Recycled . | . . . . . . Recycled Matter . | . . . . . . Retrieved Matter . | . . . . . . Retrieved Components . | . . . . . . Parts Scanalyzed . | . . . . . . Part Schematics Acquired . | . . . . . . Parts Damaged . | . . . . . . Bothacking | -11 -10 -10 -9 -8 -7 ------------ Run | Scr Mat Min Mat Mat Fac Used RIF Installer . | . . . . . . Robots Hacked . | . . . . . . Non-combat . | . . . . . . Combat . | . . . . . . Robot Hacks Applied . | . . . . . . Relay Couplers Released . | . . . . . . Fabnet Peak Effective % . | . . . . . . Robots Rewired . | . . . . . . Allies Hacked . | . . . . . . Hacks Repelled . | . . . . . . Allies | -11 -10 -10 -9 -8 -7 -------- Run | Scr Mat Min Mat Mat Fac Total Allies . | . . . . . . Largest Group . | . . . . . . Highest-Rated Group . | . . . . . . Highest-Rated Ally . | . . . . . . Total Orders . | . . . . . . Ally Attacks . | . . . . . . Total Damage . | . . . . . . Kills . | . . . . . . Allies Corrupted . | . . . . . . Allies Melted . | . . . . . . Intel | -11 -10 -10 -9 -8 -7 ------- Run | Scr Mat Min Mat Mat Fac Robot Analysis Total . | . . . . . . Derelict Logs Recovered 1 | . . 1 . . . Drone Launches . | . . . . . . Drone Recoveries . | . . . . . . Exploration | -11 -10 -10 -9 -8 -7 ------------- Run | Scr Mat Min Mat Mat Fac Turns Passed 2879 | 114 352 72 699 797 845 Spaces Moved 1521 | 58 204 46 349 349 515 Core 129 | 5 . . . . 124 Treads 1112 | 53 204 46 349 349 111 Legs 271 | . . . . . 271 Wheels 9 | . . . . . 9 Hover . | . . . . . . Flight . | . . . . . . Fastest Speed 50 | 50 160 160 145 153 50 Average Speed 143 | 150 160 160 155 160 115 Slowest Speed 200 | 160 160 160 160 170 200 Overloaded Moves . | . . . . . . Propulsion Burnouts . | . . . . . . Robots Hopped . | . . . . . . Cave-ins Triggered . | . . . . . . Exploration Rate (%) 25 | 5 51 17 38 29 12 Regions Visited 5 Branch Regions 1 Pre-discovered Areas . | . . . . . . Known Exits Taken 4 | . 1 1 1 1 . Unknown Exits Taken 1 | 1 . . . . . Scrap Searched 1 | . . 1 . . . Spaces Dug . | . . . . . . Terrain Destroyed 97 | . . . 4 22 71 Melee . | . . . . . . Projectile 25 | . . . 4 18 3 AOE 72 | . . . . 4 68 Terrain Rammed . | . . . . . . Walls Destroyed . | . . . . . . Machines Disabled . | . . . . . . Actions | -11 -10 -10 -9 -8 -7 --------- Run | Scr Mat Min Mat Mat Fac Total 1901 | 85 216 45 429 467 659 Wait 65 | 12 . . . 6 47 Move 1516 | 57 203 45 348 348 515 Hop . | . . . . . . Pick Up 64 | 10 3 . 18 19 14 Fast Attach . | . . . . . . Attach 40 | 6 1 . 5 18 10 Detach . | . . . . . . Swap 20 | . 1 . 7 3 9 Drop 27 | . 1 . 12 5 9 Fire 164 | . 7 . 39 64 54 Melee . | . . . . . . Ram 1 | . . . . . 1 Kick . | . . . . . . Crush 4 | . . . . 4 . Escape Stasis . | . . . . . . Rewire . | . . . . . . Trap . | . . . . . . Miscellaneous . | . . . . . . Route ------- -11/Scrapyard -10/Materials -10/Mines -9/Materials -8/Materials -7/Factory History --------- Turn | Location | Event 19 | -11/Scrapyard | Discovered new exit (range 16) 115 | -11/Scrapyard | Entered Materials 304 | -10/Materials | Build established: Mutant 437 | -10/Materials | Discovered new exit (range 15) 459 | -10/Materials | Identified exit to Mines 467 | -10/Materials | Entered Mines 472 | -10/Mines | Met a Derelict bent on vengeance 525 | -10/Mines | Discovered new exit (range 9) 527 | -10/Mines | Learned Materials terminal intel 538 | -10/Mines | Identified exit to Materials 539 | -10/Mines | Entered Materials 539 | -9/Materials | Evolved 2 slots: Utility x1, Weapon x1 540 | -9/Materials | Loaded intel: 12 terminal locations 1097 | -9/Materials | Discovered new exit (range 13) 1236 | -9/Materials | Identified exit to Materials 1238 | -9/Materials | Entered another Materials area 1238 | -8/Materials | Evolved 2 slots: Propulsion x1, Utility x1 1437 | -8/Materials | Core integrity fell below 50% 1495 | -8/Materials | Lost 8 parts (1p2n1u4w) 1614 | -8/Materials | Core integrity fell below 20% 1731 | -8/Materials | Garrison activated, responded to threat 1838 | -8/Materials | Discovered new exit (range 16) 1860 | -8/Materials | Identified exit to Factory 2012 | -8/Materials | Build established: Tank 2035 | -8/Materials | Entered Factory 2035 | -7/Factory | Evolved 2 slots: Utility x2 2089 | -7/Factory | Repaired Arm. Treads 2748 | -7/Factory | Lost 5 parts (2u3w) 2768 | -7/Factory | Cargo convoy interrupted 2813 | -7/Factory | Core integrity fell below 50% 2825 | -7/Factory | Lost 9 parts (1p3n3u2w) 2866 | -7/Factory | Core integrity fell below 20% 2880 | -7/Factory | Destroyed by X-57 Shotgunner with High-powered Shotgun Last Messages --------------- Acquired Gauss Rifle. Slug penetrates Wall. Slug penetrates P-60 Hacker. Slug penetrates Wall. Weight Redist. System destroyed. Slug penetrates Wall. P-60 Hacker destroyed. Slug penetrates Wall. K-01 Serf collects debris. System corrupted: Energy discharge (-20). Dropped Gauss Rifle. Discarded Imp. Signal Interpreter. K-01 Serf collects debris. Slammed into K-01 Serf. K-01 Serf sends out distress signal. Acquired 44 matter. Arm. Wheel destroyed. Penetrated by Slug. Slug penetrates Wall. [Achievement: 5k Club] Map ----- +----------------------------------------------------+ | ??????????????????????????????????? | | ??????????????????????????????????? | | ??????????????????????????????????? | | ??????????????????????????????????? | | ??????????????????????????????????? | | ??????????????????????????????????? | | ??????????????????????????????????? | | ??????????????????????????????????? | | ??????????????????????????????????? | | ??????????????????????????????????? | | ??????????????????????????????????? | | ??????????????????????????????????? | | ??????????????????????????????????? | | ??????????????????????????????????? | | ??????????????????????????????????? | | ??????????????????????????????????? | | ???????############???????????????? | | ???????# #???????????????? | | ???????# #???????????????? | | ???????# #???????????????? | | ???????# #???????????????? | | ???????# #???????????????? | | ???????# #???????????????? | | ???????# #??????????????## | | ???????# #?????????????? | | ???????# @ #??????????????" | | ???????# #?????????????"" | | ???????# #??????????# """ | | ######## ###########? "" | | # ## # #? "" | | # ## # ## | | # ## p # ## """ | | # #######;##### ## """ | | # # p####[ ## """ | | # + += [ ## "" | | # # x####! ! ## "" | | # ### #??# !! ## | | # #?# ########+##########+ | | # ### | | # + | | # ###### | | #############+##########+########## | | ?????# ## #?????? | | ?????# """ ] ##"""" #?????? | | ?????# "R ##"""" #?????? | | ?????# """ ##"""" #?????? | | ?????# """ ##"""" #?????? | | ?????# ##"""" #?????? | | ?????# """""" ##"""" #?????? | | ?????# """""" ##"""" #?????? | +----------------------------------------------------+ Best States ------------- Heat Dissipation 45 Energy Generation 16 Energy Capacity 290 Matter Stores 425 Matter Capacity 450 Sight Range 16 Robot Scan Range 15 Terrain Scan Density 85 Additional Mass Support 6 Armor Coverage 375 Evasion (%) 55 Recoil Reduction 3 Item Schematics ----------------- None Robot Schematics ------------------ None Fabricated ------------ Nothing Alien Tech Used ----------------- None Achievements -------------- 5k Club I Spy It Was An Accident, I Swear Let's See Who's Tougher More Dakka Please Oops Challenges ------------ None Game ------ Seed LauncherMakeshiftMultirail Manual? 0 Play Time 00:42:05 Cumulative 4.2 hours Start 2022.06.01 @ 21:08:15 End 2022.06.01 @ 22:57:40 Sessions 3 Manual Loads 0 Difficulty Rogue Special Mode None Game No. 5 Rogue 5 Adventurer 0 Explorer 0 Win Type - Total 0 Types 0/0/0/0/0/0/0/0/0 Lore% 6 Gallery% 9 Achievement% 10 Wizard Run 0 Options --------- ASCII 0 Keyboard 0 Movement Mouse Keybinds 0 Fullscreen 2 Font 18/SmallcapsGlow Map View 76x50 Tactical HUD 0 Map Filters NONE Filters NONE Steam 1 RUN: d402d62c-848a-4372-813d-8967070b12d8